fUST/lending_fUST_20260118
["ID","MTS","AMOUNT","RATE_DAILY","PERIOD"]
[402497534,1768687853986,-500.0,0.00016438,3]
[402497536,1768687853996,-500.0,0.00016438,3]
[402497538,1768687854006,-500.0,0.00016438,3]
[402497540,1768687854019,-507.91,0.00016438,3]
[402497542,1768687854029,-500.0,0.00016438,3]
[402497543,1768687854040,-263.30228,0.00016438,2]
[402497545,1768687854051,-500.0,0.00016438,3]
[402497547,1768687854061,-500.0,0.00016438,2]
[402497549,1768687854071,-500.0,0.00016438,3]
[402497551,1768687854081,-1016.48,0.00016438,3]
[402497553,1768687854091,-263.30228,0.00016438,2]
[402497555,1768687854101,-2392.5,0.00016438,2]
[402497557,1768687854111,-500.0,0.00016438,3]
[402497559,1768687854121,-2392.5,0.00016438,2]
[402497561,1768687854131,-2392.5,0.00016438,2]
[402497563,1768687854141,-734.51,0.00016438,3]
[402497565,1768687854151,-2392.5,0.00016438,2]
[402497567,1768687854162,-500.0,0.00016438,3]
[402497569,1768687854172,-2392.5,0.00016438,2]
[402497570,1768687854182,-500.0,0.00016438,3]
[402497572,1768687854192,-2392.5,0.00016438,2]
[402497574,1768687854202,-1126.76,0.00016438,3]
[402497577,1768687854212,-2392.5,0.00016438,2]
[402497579,1768687854222,-263.30228,0.00016438,2]
[402497580,1768687854233,-2392.5,0.00016438,2]
[402497582,1768687854244,-2392.5,0.00016438,2]
[402497584,1768687854255,-2392.5,0.00016438,2]
[402497586,1768687854265,-500.0,0.00016438,2]
[402497589,1768687854275,-2392.5,0.00016438,2]
[402497590,1768687854285,-2392.5,0.00016438,2]
[402497592,1768687854295,-2392.5,0.00016438,2]
[402497594,1768687854305,-2392.5,0.00016438,2]
[402497596,1768687854315,-263.30228,0.00016438,2]
[402497598,1768687854325,-2392.5,0.00016438,2]
[402497600,1768687854335,-2392.5,0.00016438,2]
[402497602,1768687854345,-500.0,0.00016438,3]
[402497603,1768687854357,-2392.5,0.00016438,2]
[402497604,1768687854367,-2392.5,0.00016438,2]
[402497605,1768687854377,-2392.5,0.00016438,2]
[402497606,1768687854387,-2392.5,0.00016438,2]
[402497607,1768687854397,-500.0,0.00016438,3]
[402497608,1768687854407,-2392.5,0.00016438,2]
[402497609,1768687854416,-500.0,0.00016438,3]
[402497610,1768687854426,-2392.5,0.00016438,2]
[402497611,1768687854435,-500.0,0.00016438,3]
[402497612,1768687854445,-281.28402588,0.00016438,3]
[402497613,1768687854454,-2392.5,0.00016438,2]
[402497614,1768687854464,-500.0,0.00016438,3]
[402497615,1768687854475,-2392.63255502,0.00016438,2]
[402497616,1768687854484,-500.0,0.00016438,3]
[402497617,1768687854495,-500.0,0.00016438,3]
[402497618,1768687854504,-782.26,0.00016438,3]
[402497619,1768687854514,-500.0,0.00016438,3]
[402497620,1768687854524,-500.0,0.00016438,3]
[402497622,1768687854533,-500.0,0.00016438,3]
[402497624,1768687854544,-500.0,0.00016438,2]
[402497626,1768687854553,-500.0,0.00016438,3]
[402497628,1768687854564,-500.0,0.00016438,3]
[402497630,1768687854573,-500.0,0.00016438,3]
[402497632,1768687854583,-1203.88,0.00016438,3]
[402497634,1768687854593,-923.99,0.00016438,3]
[402497637,1768687854603,-500.0,0.00016438,3]
[402497639,1768687854612,-500.0,0.00016438,3]
[402497641,1768687854622,-2222.48,0.00016438,3]
[402497643,1768687854631,-500.0,0.00016438,3]
[402497645,1768687854641,-500.0,0.00016438,3]
[402497647,1768687854651,-967.62,0.00016438,3]
[402497649,1768687854660,-500.0,0.00016438,3]
[402497651,1768687854669,-500.0,0.00016438,3]
[402497652,1768687854679,-500.0,0.00016438,3]
[402497655,1768687854688,-500.0,0.00016438,3]
[402497657,1768687854698,-500.0,0.00016438,2]
[402497659,1768687854707,-689.526442,0.00016438,7]
[402497661,1768687854716,-3000.0,0.00016438,2]
[402497662,1768687854726,-3000.0,0.0001644,2]
[402497665,1768687854735,-3000.0,0.0001645,2]
[402497667,1768687854745,-3000.0,0.0001646,2]
[402497669,1768687854754,-263.877687,0.0001646,7]
[402497671,1768687854764,-3000.0,0.0001647,2]
[402497672,1768687854774,-3000.0,0.0001648,2]
[402497675,1768687854783,-31110.0,0.00016487,2]
[402497677,1768687854792,-151.0,0.00016487,2]
[402497679,1768687854802,-461.67526834,0.00016487,2]
[402497681,1768687854812,-311.85701,0.00016487,2]
[402497683,1768687854821,-2230.315306,0.00016487,2]
[402497685,1768687854830,-3000.0,0.0001649,2]
[402497687,1768687854840,-387.62152,0.0001649,7]
[402497689,1768687854849,-3000.0,0.000165,2]
[402497691,1768687854859,-640.830252,0.000165,7]
[402497693,1768687854869,-195.659046,0.000165,7]
[402497695,1768687854879,-3000.0,0.0001651,2]
[402497697,1768687854888,-811.0,0.00016519,2]
[402497699,1768687854898,-3000.0,0.0001652,2]
[402497701,1768687854907,-177.767463,0.0001652,7]
[402497703,1768687854919,-4990.866111,0.0001653,2]
[402497705,1768687854928,-511.788828,0.0001653,7]
[402497707,1768687854938,-500.0,0.0001656,2]
[402497709,1768687854947,-500.0,0.00016712,3]
[402497711,1768687854956,-500.0,0.00016712,3]
[402497713,1768687854966,-500.0,0.00016712,3]
[402497726,1768687855074,-500.0,0.00016712,3]
[402497728,1768687855084,-541.87987257,0.00016712,3]
[402497730,1768687855094,-500.0,0.00016712,3]
[402497732,1768687855104,-590.40738298,0.00016712,3]
[402497734,1768687855113,-151.0,0.00016712,3]
[402497736,1768687855122,-500.0,0.00016712,3]
[402497738,1768687855131,-500.0,0.00016712,3]
[402497740,1768687855141,-500.0,0.00016712,3]
[402497742,1768687855150,-500.0,0.00016712,3]
[402497744,1768687855161,-644.00223298,0.00016712,3]
[402497746,1768687855171,-1000.0,0.00016712,2]
[402497748,1768687855180,-500.0,0.00016712,3]
[402497750,1768687855189,-500.0,0.00016712,3]
[402497752,1768687855198,-500.0,0.00016712,3]
[402497754,1768687855208,-500.0,0.00016712,3]
[402497756,1768687855217,-500.0,0.00016712,3]
[402497758,1768687855226,-500.0,0.00016712,3]
[402497760,1768687855236,-500.0,0.00016712,3]
[402497762,1768687855245,-500.0,0.00016712,3]
[402497764,1768687855256,-500.0,0.00016712,3]
[402497766,1768687855265,-500.0,0.00016712,3]
[402497768,1768687855276,-500.0,0.00016712,3]
[402497770,1768687855285,-500.0,0.00016712,3]
[402497772,1768687855295,-500.0,0.00016712,3]
[402497774,1768687855304,-500.0,0.00016712,3]
[402497776,1768687855313,-500.0,0.00016712,3]
[402497778,1768687855323,-560.83,0.00016712,3]
[402497780,1768687855334,-500.0,0.00016712,3]
[402497782,1768687855343,-620.36,0.00016712,3]
[402497784,1768687855352,-500.0,0.00016712,3]
[402497786,1768687855362,-500.0,0.00016712,3]
[402497788,1768687855371,-500.0,0.00016712,3]
[402497790,1768687855380,-500.0,0.00016712,3]
[402497792,1768687855389,-512.95426722,0.00016712,3]
[402497794,1768687855399,-500.0,0.00016712,3]
[402497796,1768687855409,-500.0,0.00016712,3]
[402497798,1768687855418,-500.0,0.00016712,3]
[402497800,1768687855427,-500.0,0.00016712,3]
[402497802,1768687855437,-500.0,0.00016712,3]
[402497804,1768687855446,-500.0,0.00016712,3]
[402497806,1768687855455,-500.0,0.00016712,3]
[402497808,1768687855464,-531.66,0.00016712,3]
[402497810,1768687855474,-500.0,0.00016712,3]
[402497812,1768687855483,-500.0,0.00016712,3]
[402497814,1768687855492,-500.0,0.00016712,3]
[402497816,1768687855501,-705.44,0.00016712,3]
[402497818,1768687855510,-500.0,0.00016712,3]
[402497820,1768687855519,-500.0,0.00016712,3]
[402497822,1768687855528,-575.88539769,0.00016712,3]
[402497824,1768687855537,-500.0,0.00016712,3]
[402497827,1768687855547,-500.0,0.00016712,3]
[402497828,1768687855556,-500.0,0.00016712,2]
[402497831,1768687855565,-500.0,0.00016712,3]
[402497833,1768687855575,-500.0,0.00016712,3]
[402497834,1768687855584,-720.49,0.00016712,3]
[402497836,1768687855593,-500.0,0.00016712,3]
[402497838,1768687855601,-525.66,0.00016712,3]
[402497841,1768687855611,-500.0,0.00016712,3]
[402497843,1768687855620,-500.0,0.00016712,3]
[402497844,1768687855629,-1268.1,0.00016712,3]
[402497846,1768687855638,-560.2982487,0.00016712,3]
[402497849,1768687855647,-500.0,0.00016712,3]
[402497850,1768687855657,-500.0,0.00016712,3]
[402497852,1768687855666,-500.0,0.00016712,3]
[402497855,1768687855675,-500.0,0.00016712,3]
[402497856,1768687855684,-500.0,0.00016712,3]
[402497858,1768687855693,-500.0,0.00016712,3]
[402497860,1768687855702,-564.62,0.00016712,3]
[402497863,1768687855712,-500.0,0.00016712,3]
[402497865,1768687855721,-500.0,0.00016712,3]
[402497866,1768687855731,-500.0,0.00016712,3]
[402497868,1768687855742,-500.0,0.00016712,3]
[402497870,1768687855753,-500.0,0.00016712,3]
[402497872,1768687855763,-500.0,0.00016712,3]
[402497875,1768687855774,-968.74,0.00016712,3]
[402497877,1768687855784,-500.0,0.00016712,3]
[402497879,1768687855793,-760.21,0.00016712,3]
[402497881,1768687855803,-500.0,0.00016712,3]
[402497883,1768687855812,-500.0,0.00016712,3]
[402497885,1768687855821,-1212.85,0.00016712,3]
[402497887,1768687855831,-500.0,0.00016712,3]
[402497889,1768687855841,-257.29403538,0.00016712,3]
[402497891,1768687855850,-709.13,0.00016712,3]
[402497893,1768687855860,-500.0,0.00016712,3]
[402497895,1768687855869,-701.58,0.00016712,3]
[402497897,1768687855878,-500.0,0.00016712,3]
[402497898,1768687855887,-500.0,0.00016712,3]
[402497901,1768687855897,-500.0,0.00016712,3]
[402497902,1768687855906,-358.09548366,0.00016712,3]
[402497905,1768687855916,-500.0,0.00016712,3]
[402497907,1768687855925,-500.0,0.00016712,3]
[402497909,1768687855935,-500.0,0.00016712,3]
[402497911,1768687855945,-500.0,0.00016712,3]
[402497913,1768687855955,-1040.56,0.00016712,3]
[402497915,1768687855964,-500.0,0.00016712,3]
[402497917,1768687855974,-500.0,0.00016712,3]
[402497919,1768687855984,-1247.67,0.00016712,3]
[402497921,1768687855993,-500.0,0.00016712,3]
[402497923,1768687856003,-500.0,0.00016712,3]
[402497925,1768687856013,-811.2,0.00016712,3]
[402497927,1768687856023,-500.0,0.00016712,3]
[402497929,1768687856033,-500.0,0.00016712,3]
[402497931,1768687856044,-500.0,0.00016712,3]
[402497933,1768687856053,-500.0,0.00016712,3]
[402497935,1768687856062,-500.0,0.00016712,3]
[402497937,1768687856072,-500.0,0.00016712,3]
[402497939,1768687856082,-500.0,0.00016712,3]
[402497941,1768687856091,-717.14,0.00016712,3]
[402497943,1768687856101,-500.0,0.00016712,3]
[402497945,1768687856111,-500.0,0.00016712,3]
[402497947,1768687856121,-500.0,0.00016712,3]
[402497949,1768687856130,-653.71,0.00016712,3]
[402497951,1768687856140,-500.0,0.00016712,3]
[402497953,1768687856149,-500.0,0.00016712,3]
[402497955,1768687856159,-500.0,0.00016712,3]
[402497957,1768687856168,-500.0,0.00016712,3]
[402497959,1768687856177,-500.0,0.00016712,3]
[402497961,1768687856187,-764.69,0.00016712,3]
[402497963,1768687856197,-500.0,0.00016712,3]
[402497965,1768687856207,-1000.0,0.00016712,2]
[402497967,1768687856217,-500.0,0.00016712,3]
[402497969,1768687856230,-500.0,0.00016712,3]
[402497971,1768687856241,-500.0,0.00016712,3]
[402497973,1768687856251,-500.0,0.00016712,3]
[402497975,1768687856267,-486.76739107,0.00016712,3]
[402497977,1768687856277,-500.0,0.00016712,3]
[402497979,1768687856287,-500.0,0.00016712,3]
[402497981,1768687856297,-500.0,0.00016712,3]
[402497983,1768687856307,-500.0,0.00016712,3]
[402497985,1768687856316,-517.83,0.00016712,3]
[402497987,1768687856327,-577.4,0.00016712,3]
[402497989,1768687856336,-500.0,0.00016712,3]
[402497991,1768687856345,-500.0,0.00016712,3]
[402497993,1768687856355,-500.0,0.00016712,3]
[402497995,1768687856364,-500.0,0.00016712,3]
[402497997,1768687856374,-500.0,0.00016712,3]
[402497999,1768687856383,-500.0,0.00016712,3]
[402498001,1768687856393,-918.79,0.00016712,3]
[402498003,1768687856402,-500.0,0.00016712,3]
[402498005,1768687856411,-500.0,0.00016712,3]
[402498007,1768687856420,-594.23,0.00016712,3]
[402498009,1768687856429,-500.0,0.00016712,3]
[402498011,1768687856438,-504.62487329,0.00016712,3]
[402498013,1768687856447,-500.0,0.00016712,3]
[402498015,1768687856457,-1276.22,0.00016712,3]
[402498017,1768687856466,-500.0,0.00016712,3]
[402498019,1768687856475,-926.45,0.00016712,3]
[402498021,1768687856484,-500.0,0.00016712,3]
[402498023,1768687856493,-500.0,0.00016712,3]
[402498025,1768687856503,-500.0,0.00016712,3]
[402498027,1768687856512,-500.0,0.00016712,3]
[402498029,1768687856521,-500.0,0.00016712,3]
[402498031,1768687856531,-549.36,0.00016712,3]
[402498033,1768687856540,-748.74,0.00016712,3]
[402498035,1768687856549,-651.61,0.00016712,3]
[402498037,1768687856558,-500.0,0.00016712,3]
[402498039,1768687856567,-500.0,0.00016712,3]
[402498041,1768687856576,-500.0,0.00016712,3]
[402498043,1768687856586,-500.0,0.00016712,3]
[402498045,1768687856596,-500.0,0.00016712,3]
[402498047,1768687856605,-231.71584647,0.00016712,3]
[402498049,1768687856615,-902.19,0.00016712,3]
[402498051,1768687856624,-500.0,0.00016712,3]
[402498053,1768687856633,-500.0,0.00016712,3]
[402498055,1768687856645,-905.84,0.00016712,3]
[402498057,1768687856655,-500.0,0.00016712,3]
[402498059,1768687856664,-270.52290684,0.00016712,3]
[402498061,1768687856674,-692.54,0.00016712,3]
[402498064,1768687856683,-1038.57,0.00016712,3]
[402498065,1768687856693,-500.0,0.00016712,3]
[402498067,1768687856703,-500.0,0.00016712,3]
[402498069,1768687856712,-674.51,0.00016712,3]
[402498072,1768687856721,-551.81,0.00016712,3]
[402498074,1768687856731,-500.0,0.00016712,3]
[402498075,1768687856740,-500.0,0.00016712,3]
[402498078,1768687856749,-500.0,0.00016712,3]
[402498080,1768687856759,-500.0,0.00016712,3]
[402498081,1768687856768,-500.0,0.00016712,3]
[402498084,1768687856777,-500.0,0.00016712,3]
[402498086,1768687856787,-500.0,0.00016712,3]
[402498087,1768687856796,-500.0,0.00016712,3]
[402498089,1768687856806,-534.44,0.00016712,3]
[402498091,1768687856815,-500.0,0.00016712,3]
[402498094,1768687856824,-500.0,0.00016712,3]
[402498095,1768687856835,-500.0,0.00016712,3]
[402498097,1768687856844,-500.0,0.00016712,3]
[402498099,1768687856853,-520.86,0.00016712,3]
[402498102,1768687856863,-500.0,0.00016712,3]
[402498103,1768687856872,-935.84,0.00016712,3]
[402498106,1768687856882,-500.0,0.00016712,3]
[402498107,1768687856891,-500.0,0.00016712,3]
[402498109,1768687856902,-500.0,0.00016712,3]
[402498112,1768687856911,-1204.98,0.00016712,3]
[402498114,1768687856921,-500.0,0.00016712,3]
[402498116,1768687856930,-500.0,0.00016712,3]
[402498118,1768687856940,-500.0,0.00016712,3]
[402498119,1768687856949,-500.0,0.00016712,3]
[402498121,1768687856960,-500.0,0.00016712,3]
[402498124,1768687856970,-1112.65,0.00016712,3]
[402498126,1768687856979,-595.44134723,0.00016712,3]
[402498127,1768687856988,-660.45,0.00016712,3]
[402498130,1768687856998,-500.0,0.00016712,3]
[402498132,1768687857007,-500.0,0.00016712,3]
[402498133,1768687857016,-500.0,0.00016712,3]
[402498135,1768687857025,-500.0,0.00016712,3]
[402498137,1768687857034,-507.26,0.00016712,3]
[402498139,1768687857043,-500.0,0.00016712,3]
[402498141,1768687857053,-500.0,0.00016712,3]
[402498143,1768687857063,-512.1,0.00016712,3]
[402498145,1768687857072,-500.0,0.00016712,3]
[402498147,1768687857082,-500.0,0.00016712,3]
[402498149,1768687857091,-1337.44,0.00016712,3]
[402498152,1768687857101,-500.0,0.00016712,3]
[402498153,1768687857110,-500.0,0.00016712,3]
[402498155,1768687857119,-500.0,0.00016712,3]
[402498158,1768687857128,-547.31106992,0.00016712,3]
[402498160,1768687857138,-500.0,0.00016712,3]
[402498161,1768687857148,-500.0,0.00016712,3]
[402498163,1768687857157,-500.0,0.00016712,3]
[402498165,1768687857166,-500.0,0.00016712,3]
[402498167,1768687857176,-500.0,0.00016712,3]
[402498169,1768687857185,-500.0,0.00016712,3]
[402498171,1768687857194,-500.0,0.00016712,3]
[402498173,1768687857204,-1290.76,0.00016712,3]
[402498175,1768687857213,-500.0,0.00016712,3]
[402498177,1768687857222,-500.0,0.00016712,3]
[402498179,1768687857232,-500.0,0.00016712,3]
[402498181,1768687857241,-565.1,0.00016712,3]
[402498183,1768687857250,-500.0,0.00016712,3]
[402498185,1768687857264,-1077.86,0.00016712,3]
[402498187,1768687857273,-500.0,0.00016712,3]
[402498189,1768687857283,-590.51,0.00016712,3]
[402498191,1768687857292,-1221.92,0.00016712,3]
[402498193,1768687857302,-616.9,0.00016712,3]
[402498195,1768687857311,-568.78,0.00016712,3]
[402498197,1768687857320,-500.0,0.00016712,3]
[402498199,1768687857330,-805.22,0.00016712,3]
[402498201,1768687857340,-702.99,0.00016712,3]
[402498203,1768687857349,-500.0,0.00016712,3]
[402498205,1768687857359,-500.0,0.00016712,3]
[402498207,1768687857368,-500.0,0.00016712,3]
[402498209,1768687857377,-500.0,0.00016712,3]
[402498211,1768687857386,-500.0,0.00016712,3]
[402498213,1768687857395,-500.0,0.00016712,3]
[402498216,1768687857405,-544.04779014,0.00016712,3]
[402498218,1768687857414,-500.0,0.00016712,3]
[402498219,1768687857424,-712.39,0.00016712,3]
[402498222,1768687857435,-500.0,0.00016712,3]
[402498223,1768687857444,-500.0,0.00016712,3]
[402498226,1768687857454,-500.0,0.00016712,3]
[402498228,1768687857463,-500.0,0.00016712,3]
[402498230,1768687857474,-500.0,0.00016712,3]
[402498232,1768687857483,-500.0,0.00016712,3]
[402498234,1768687857492,-649.78,0.00016712,3]
[402498236,1768687857501,-500.0,0.00016712,3]
[402498238,1768687857510,-551.88,0.00016712,3]
[402498240,1768687857520,-500.0,0.00016712,3]
[402498242,1768687857530,-500.0,0.00016712,3]
[402498244,1768687857540,-500.0,0.00016712,3]
[402498246,1768687857550,-949.67,0.00016712,3]
[402498248,1768687857560,-500.0,0.00016712,3]
[402498250,1768687857569,-591.59,0.00016712,3]
[402498252,1768687857579,-500.0,0.00016712,3]
[402498254,1768687857589,-519.22,0.00016712,3]
[402498256,1768687857598,-982.72,0.00016712,3]
[402498258,1768687857607,-500.0,0.00016712,3]
[402498260,1768687857617,-1026.17,0.00016712,3]
[402498262,1768687857627,-500.0,0.00016712,3]
[402498264,1768687857638,-500.0,0.00016712,3]
[402498266,1768687857648,-500.0,0.00016712,3]
[402498269,1768687857658,-807.96,0.00016712,3]
[402498271,1768687857668,-500.0,0.00016712,3]
[402498273,1768687857678,-500.0,0.00016712,3]
[402498275,1768687857697,-1012.92,0.00016712,3]
[402498277,1768687857707,-500.0,0.00016712,3]
[402498279,1768687857716,-500.0,0.00016712,3]
[402498281,1768687857728,-500.0,0.00016712,3]
[402498283,1768687857745,-521.12,0.00016712,3]
[402498285,1768687857754,-500.0,0.00016712,3]
[402498287,1768687857763,-297.49810477,0.00016712,3]
[402498289,1768687857772,-500.0,0.00016712,3]
[402498291,1768687857782,-500.0,0.00016712,3]
[402498292,1768687857791,-532.59,0.00016712,3]
[402498293,1768687857801,-500.0,0.00016712,3]
[402498294,1768687857810,-500.0,0.00016712,3]
[402498295,1768687857819,-500.0,0.00016712,3]
[402498296,1768687857829,-500.0,0.00016712,3]
[402498297,1768687857838,-500.0,0.00016712,3]
[402498298,1768687857848,-500.0,0.00016712,3]
[402498299,1768687857858,-500.0,0.00016712,3]
[402498300,1768687857878,-532.04,0.00016712,3]
[402498301,1768687857890,-500.0,0.00016712,3]
[402498302,1768687857900,-500.0,0.00016712,3]
[402498303,1768687857914,-524.35,0.00016712,3]
[402498304,1768687857924,-766.89,0.00016712,3]
[402498305,1768687857934,-613.61,0.00016712,3]
[402498306,1768687857945,-500.0,0.00016712,3]
[402498307,1768687857956,-500.0,0.00016712,3]
[402498308,1768687857966,-1247.55,0.00016712,3]
[402498309,1768687857976,-500.0,0.00016712,3]
[402498310,1768687857986,-520.11533146,0.00016712,3]
[402498311,1768687857995,-500.0,0.00016712,3]
[402498312,1768687858006,-500.0,0.00016712,3]
[402498313,1768687858017,-687.66,0.00016712,3]
[402498314,1768687858026,-500.0,0.00016712,3]
[402498315,1768687858036,-500.0,0.00016712,3]
[402498316,1768687858047,-537.66,0.00016712,3]
[402498317,1768687858061,-500.0,0.00016712,3]
[402498318,1768687858071,-500.0,0.00016712,3]
[402498319,1768687858081,-500.0,0.00016712,3]
[402498320,1768687858092,-500.0,0.00016712,3]
[402498321,1768687858102,-500.0,0.00016712,3]
[402498322,1768687858113,-500.0,0.00016712,3]
[402498323,1768687858123,-758.32,0.00016712,3]
[402498324,1768687858133,-500.0,0.00016712,3]
[402498325,1768687858143,-500.0,0.00016712,3]
[402498326,1768687858154,-500.0,0.00016712,3]
[402498327,1768687858165,-500.0,0.00016712,3]
[402498328,1768687858175,-500.0,0.00016712,3]
[402498329,1768687858186,-678.19,0.00016712,3]
[402498330,1768687858197,-863.31,0.00016712,3]
[402498331,1768687858207,-500.0,0.00016712,3]
[402498332,1768687858219,-500.0,0.00016712,3]
[402498333,1768687858229,-821.84,0.00016712,3]
[402498334,1768687858239,-500.0,0.00016712,3]
[402498335,1768687858249,-500.0,0.00016712,3]
[402498336,1768687858264,-500.0,0.00016712,3]
[402498337,1768687858275,-739.07,0.00016712,3]
[402498338,1768687858286,-500.0,0.00016712,3]
[402498339,1768687858296,-500.0,0.00016712,3]
[402498340,1768687858307,-500.0,0.00016712,3]
[402498341,1768687858317,-500.0,0.00016712,3]
[402498342,1768687858329,-500.0,0.00016712,3]
[402498343,1768687858339,-466.05554011,0.00016712,3]
[402498344,1768687858349,-500.0,0.00016712,3]
[402498345,1768687858360,-500.0,0.00016712,3]
[402498346,1768687858370,-882.76,0.00016712,3]
[402498347,1768687858381,-500.0,0.00016712,3]
[402498348,1768687858391,-500.0,0.00016712,3]
[402498349,1768687858401,-897.36,0.00016712,3]
[402498350,1768687858411,-761.62,0.00016712,3]
[402498351,1768687858422,-500.0,0.00016712,3]
[402498352,1768687858433,-607.12,0.00016712,3]
[402498353,1768687858443,-500.0,0.00016712,3]
[402498354,1768687858453,-1200.0,0.00016712,2]
[402498355,1768687858464,-500.0,0.00016712,3]
[402498356,1768687858474,-1989.94,0.00016712,3]
[402498357,1768687858483,-500.0,0.00016712,3]
[402498358,1768687858493,-1114.36,0.00016712,3]
[402498359,1768687858503,-586.42,0.00016712,3]
[402498360,1768687858513,-269.65,0.00016712,2]
[402498361,1768687858523,-500.0,0.00016712,3]
[402498363,1768687858533,-1486.78,0.00016712,3]
[402498365,1768687858543,-500.0,0.00016712,3]
[402498366,1768687858554,-500.0,0.00016712,3]
[402498367,1768687858564,-500.0,0.00016712,3]
[402498368,1768687858574,-534.25045514,0.00016712,3]
[402498369,1768687858584,-500.0,0.00016712,3]
[402498370,1768687858594,-500.0,0.00016712,3]
[402498371,1768687858604,-1333.62,0.00016712,3]
[402498372,1768687858614,-500.0,0.00016712,3]
[402498373,1768687858624,-500.0,0.00016712,3]
[402498374,1768687858634,-500.0,0.00016712,3]
[402498375,1768687858644,-671.96,0.00016712,3]
[402498376,1768687858654,-500.0,0.00016712,3]
[402498377,1768687858664,-500.0,0.00016712,3]
[402498378,1768687858674,-500.0,0.00016712,3]
[402498379,1768687858684,-500.0,0.00016712,3]
[402498380,1768687858694,-500.0,0.00016712,3]
[402498381,1768687858709,-500.0,0.00016712,3]
[402498382,1768687858720,-500.0,0.00016712,3]
[402498383,1768687858730,-500.0,0.00016712,3]
[402498384,1768687858742,-500.0,0.00016712,3]
[402498385,1768687858753,-500.0,0.00016712,3]
[402498386,1768687858764,-500.0,0.00016712,3]
[402498387,1768687858775,-1719.73,0.00016712,3]
[402498388,1768687858792,-1057.83,0.00016712,3]
[402498389,1768687858805,-500.0,0.00016712,3]
[402498390,1768687858816,-500.0,0.00016712,3]
[402498391,1768687858827,-500.0,0.00016712,3]
[402498392,1768687858838,-957.61,0.00016712,3]
[402498393,1768687858849,-500.0,0.00016712,3]
[402498394,1768687858860,-500.0,0.00016712,3]
[402498395,1768687858871,-500.0,0.00016712,3]
[402498396,1768687858882,-500.0,0.00016712,3]
[402498397,1768687858893,-500.0,0.00016712,3]
[402498398,1768687858903,-500.0,0.00016712,3]
[402498399,1768687858914,-500.0,0.00016712,3]
[402498400,1768687858925,-500.0,0.00016712,3]
[402498401,1768687858936,-500.0,0.00016712,3]
[402498402,1768687858947,-500.0,0.00016712,3]
[402498403,1768687858957,-500.0,0.00016712,3]
[402498404,1768687858967,-1633.97,0.00016712,3]
[402498405,1768687858978,-500.0,0.00016712,3]
[402498406,1768687858988,-500.0,0.00016712,3]
[402498407,1768687858998,-500.0,0.00016712,3]
[402498408,1768687859009,-500.0,0.00016712,3]
[402498409,1768687859019,-500.0,0.00016712,3]
[402498410,1768687859031,-500.0,0.00016712,3]
[402498411,1768687859042,-500.0,0.00016712,3]